bitfinex/quotes_SOLUSD_20250915
["timestamp","ask_amount","ask_price","bid_price","bid_amount"]
[1757956289463,0.67,232.13,232.12,1.77440498]
[1757956289762,0.67,232.13,232.08,15.08100654]
[1757956289763,0.67,232.13,232.09,1.91656655]
[1757956289980,0.67,232.12,232.09,1.91656655]
[1757956290176,0.67,232.11,232.1,1.91656655]
[1757956290393,0.67,232.11,232.1,0.14216157]
[1757956290691,0.67,232.11,232.07,0.14216157]
[1757956290994,0.67,232.11,232.06,6.08350091]
[1757956291170,1.77440498,232.13,232.06,6.08350091]
[1757956291171,0.67,232.1,232.06,6.08350091]
[1757956291362,0.67,232.09,232.06,4.30909593]
[1757956291564,1.77440498,232.13,232.07,1.77440498]
[1757956291565,0.67,232.08,232.07,1.77440498]
[1757956292394,0.67,232.08,232.05,1.91656655]
[1757956292582,1.77440498,232.12,232.05,1.91656655]
[1757956292583,0.68,232.07,232.05,1.91656655]
[1757956292894,0.68,232.06,232.05,1.91656655]
[1757956293069,0.68,232.06,232.05,0.14216157]
[1757956293259,0.68,232.06,232.02,4.30979361]
[1757956293458,0.68,232.05,231.99,15.36999899]
[1757956293674,0.68,232.04,231.99,15.36999899]
[1757956293875,34.6,232.08,231.99,15.36999899]
[1757956293876,0.68,232.03,232.01,1.77440498]
[1757956294379,36.37440498,232.08,232.01,1.77440498]
[1757956294598,0.68,232.02,231.99,19.68046498]
[1757956294791,0.68,232.02,232.0,0.14216157]
[1757956294978,0.68,232.01,232.0,0.14216157]
[1757956295297,0.68,232.02,232.0,0.14216157]
[1757956295799,0.68,232.01,232.0,2.9123563]
[1757956295985,0.68,232.01,232.0,0.14216157]
[1757956296186,0.68,232.01,231.95,0.06]
[1757956296390,0.68,232.01,231.97,2.77019473]
[1757956296584,0.68,232.01,231.98,2.77019473]
[1757956296897,0.68,232.01,231.99,0.14216157]
[1757956297681,0.68,232.01,231.99,4.4525125]
[1757956298410,0.68,232.0,231.99,0.14216157]
[1757956298890,0.68,232.02,231.99,0.14216157]
[1757956299102,0.68,232.02,231.99,4.31050408]
[1757956299298,0.68,232.02,231.98,4.45287801]
[1757956299509,0.68,232.01,231.98,4.45287801]
[1757956299674,0.68,232.0,231.98,4.45287801]
[1757956300075,0.68,232.0,231.98,0.14216157]
[1757956301285,0.68,231.99,231.98,0.06]
[1757956302509,134.3,232.07,231.98,2.9723563]
[1757956302689,0.68,232.03,232.0,2.77019473]
[1757956303403,134.3,232.07,232.02,2.77019473]
[1757956303576,0.68,232.06,232.03,2.9123563]
[1757956303771,0.68,232.05,232.03,2.9123563]
[1757956304782,34.56,232.06,232.03,2.9123563]
[1757956305000,0.03,232.08,232.05,2.77019473]
[1757956305180,0.03,232.08,232.07,2.77019473]
[1757956306531,0.71,232.08,232.03,0.14216157]
[1757956306806,2.77019473,232.04,231.98,0.06]
[1757956307115,38.01019473,232.03,231.98,0.06]
[1757956307298,2.77019473,232.0,231.98,0.06]
[1757956307685,0.68,231.99,231.98,0.06]
[1757956307887,2.77019473,232.0,231.98,0.06]
[1757956308508,3.45019473,232.0,231.98,0.06]
[1757956308893,2.77019473,232.0,231.98,0.06]
[1757956309093,0.68,232.02,231.98,0.06]
[1757956309397,3.45019473,232.01,231.98,0.06]
[1757956310202,2.77019473,231.99,231.98,0.06]
[1757956310606,3.45019473,231.99,231.98,0.06]
[1757956314590,7.76072535,231.99,231.98,0.06]
[1757956314985,4.99053062,231.99,231.98,0.06]
[1757956315184,7.76072535,231.99,231.98,0.06]
[1757956318204,3.45019473,231.99,231.98,0.06]
[1757956318508,37.99019473,231.99,231.98,0.06]
[1757956319503,35.22,231.99,231.98,0.06]
[1757956319700,37.99019473,231.99,231.98,0.06]
[1757956319898,35.22,231.99,231.98,0.06]
[1757956320104,37.99019473,231.99,231.98,0.06]
[1757956320625,42.30072535,231.99,231.98,0.06]
[1757956321118,37.31019473,231.99,231.98,0.06]
[1757956321319,161.0,232.02,231.98,0.06]
[1757956321620,34.54,232.01,231.98,0.06]
[1757956323291,3.45019473,232.0,231.98,0.06]
[1757956323517,2.77019473,231.99,231.98,0.06]
[1757956323720,3.45019473,231.99,231.98,0.06]
[1757956324024,37.97019473,231.99,231.98,0.06]
[1757956325016,37.29019473,231.99,231.98,0.06]
[1757956325815,37.97019473,231.99,231.98,0.06]
[1757956326598,35.2,231.99,231.98,0.06]
[1757956326799,37.97019473,231.99,231.98,0.06]
[1757956327217,3.45019473,231.99,231.98,0.06]
[1757956327398,37.97019473,231.99,231.98,0.06]
[1757956328408,37.29019473,231.99,231.98,0.06]
[1757956328618,134.3,232.02,231.98,0.55]
[1757956328819,34.55,232.03,231.99,16.50795031]
[1757956329038,0.03,232.03,232.01,16.50795031]
[1757956329329,0.03,232.03,232.02,16.85578874]
[1757956330220,0.03,232.03,232.02,16.99795031]
[1757956330426,0.03,232.03,232.02,14.22775558]
[1757956330615,0.03,232.03,232.02,18.53772885]
[1757956331211,0.03,232.03,232.02,13.73775558]
[1757956331430,0.03,232.03,232.02,18.04772885]
[1757956331614,0.03,232.03,232.02,21.30792358]
[1757956332229,0.03,232.03,232.02,20.81792358]
[1757956333124,0.03,232.03,232.02,0.14216157]
[1757956333325,37.98019473,232.03,231.98,0.06]
[1757956333628,2.77019473,232.01,231.98,0.06]
[1757956334131,2.77019473,232.01,231.98,0.20216157]
[1757956334431,2.77019473,232.01,231.98,4.51285025]
[1757956334632,34.5,232.01,231.98,4.51285025]
[1757956335110,37.27019473,232.01,231.98,4.51285025]
[1757956335528,37.27019473,232.01,231.98,0.20216157]
[1757956335949,3.45019473,232.0,231.98,0.20216157]
[1757956336633,0.68,232.0,231.98,0.20216157]
[1757956337249,37.27019473,232.01,231.98,0.20216157]
[1757956337436,35.18,232.01,231.98,4.51286161]
[1757956337618,37.95019473,232.01,231.98,4.51286161]
[1757956337935,0.03,232.03,232.0,0.14216157]
[1757956338235,0.03,232.03,232.02,0.14216157]
[1757956339228,0.71,232.03,232.02,0.14216157]
[1757956339610,0.03,232.03,232.02,0.14216157]
[1757956340141,2.80019473,232.03,231.99,17.9060271]
[1757956340315,2.80019473,232.03,231.98,0.06]
[1757956340316,2.77019473,232.0,231.98,0.06]
[1757956340639,2.77019473,232.01,231.98,0.06]
[1757956340938,2.77019473,232.01,231.98,4.51286275]
[1757956341140,37.93019473,232.02,231.98,4.51286275]
[1757956341640,0.68,232.01,231.98,4.51286275]
[1757956342239,0.68,232.01,231.98,0.20216157]
[1757956342434,3.45019473,232.01,231.98,0.20216157]
[1757956343142,34.48,232.02,231.98,4.5128474]
[1757956343340,0.68,232.01,231.98,4.5128474]
[1757956343730,34.48,232.02,231.98,4.5128474]
[1757956345630,3.45019473,232.01,231.98,0.20216157]
[1757956346027,3.45019473,232.01,231.98,4.51286937]
[1757956346233,0.68,232.01,231.98,4.51286937]
[1757956346731,0.03,232.03,231.99,16.36578874]
[1757956347130,0.03,232.03,232.01,0.14216157]
[1757956348049,0.03,232.03,232.02,7.22232957]
[1757956348228,0.03,232.03,232.02,21.30792358]
[1757956349346,0.03,232.03,232.02,22.18960954]
[1757956349528,0.03,232.03,232.02,24.52880695]
[1757956350030,0.03,232.03,232.02,50.52880695]
[1757956350347,0.03,232.03,232.02,21.30792358]
[1757956351629,0.03,232.03,232.02,47.30792358]
[1757956352141,0.03,232.03,232.02,21.30792358]
[1757956353162,0.03,232.03,232.02,20.81792358]
[1757956353355,0.03,232.03,232.02,46.81792358]
[1757956353657,0.03,232.03,232.02,42.50795031]
[1757956353829,0.03,232.03,232.0,2.77019473]
[1757956354022,0.68,232.02,231.99,13.59559401]
[1757956354227,0.68,232.01,231.99,13.59559401]
[1757956354428,0.03,232.03,231.99,13.59559401]
[1757956354930,0.68,232.02,231.99,17.9060654]
[1757956355124,0.68,232.01,231.99,17.9060654]
[1757956355524,0.68,232.01,232.0,0.14216157]
[1757956355963,2.45323409,232.01,232.0,0.14216157]
[1757956356738,2.45323409,232.01,231.98,0.06]
[1757956356739,0.68,232.01,231.98,0.06]
[1757956356976,1.77323409,231.99,231.98,0.06]
[1757956357331,2.45323409,231.99,231.98,0.06]
[1757956359046,0.68,231.99,231.98,0.06]
[1757956359249,0.03,232.06,231.99,39.73775558]
[1757956359438,0.03,232.11,232.1,39.73775558]
[1757956359771,0.03,232.11,232.1,41.51098967]
[1757956360373,0.03,232.11,232.1,45.81947739]
[1757956360561,0.03,232.11,232.1,49.03405652]
[1757956360739,0.03,232.11,232.1,45.81947739]
[1757956361054,0.03,232.11,232.1,49.92509558]
[1757956361238,0.03,232.11,232.1,49.49424681]
[1757956361438,0.03,232.11,232.1,46.27947739]
[1757956361640,1e-08,232.13,232.11,13.73775558]
[1757956361854,1e-08,232.13,232.12,17.99294959]
[1757956362040,1e-08,232.13,232.12,18.45294959]
[1757956362242,1e-08,232.13,232.12,22.76106608]
[1757956364045,1e-08,232.13,232.12,56.72106608]
[1757956365057,0.68,232.26,232.17,0.14216157]
[1757956365267,0.68,232.26,232.25,4.39735558]
[1757956365476,0.68,232.26,232.25,0.14216157]
[1757956365851,4.30403893,232.34,232.25,0.14216157]
[1757956365852,0.2,232.36,232.26,13.73775558]
[1757956366046,4.25519401,232.35,232.26,13.73775558]
[1757956366287,0.2,232.36,232.26,17.99294959]
[1757956366566,0.68,232.3,232.26,13.73775558]
[1757956366754,0.2,232.36,232.26,13.73775558]
[1757956366755,0.88,232.27,232.26,13.73775558]
[1757956366955,0.88,232.27,232.26,0.14216157]
[1757956367665,0.88,232.27,232.21,13.59559401]
[1757956367666,5.13519401,232.27,232.21,13.59559401]
[1757956367871,4.93519401,232.26,232.19,4.25519401]
[1757956368057,4.25519401,232.24,232.18,13.59559401]
[1757956368367,4.25519401,232.22,232.11,0.46]
[1757956368556,4.25519401,232.22,232.14,13.59559401]
[1757956368868,4.93519401,232.21,232.17,0.14216157]
[1757956369067,4.93519401,232.21,232.16,43.85078802]
[1757956369068,0.68,232.21,232.16,43.85078802]
[1757956369261,0.68,232.21,232.17,0.14216157]
[1757956369653,0.68,232.25,232.21,0.14216157]
[1757956369852,0.2,232.27,232.23,0.14216157]
[1757956370063,0.68,232.26,232.23,0.14216157]
[1757956370960,0.2,232.27,232.25,13.73775558]
[1757956372753,0.2,232.27,232.26,18.04327525]
[1757956373660,0.9,232.27,232.19,0.43068176]
[1757956373866,0.9,232.27,232.15,13.59559401]
[1757956374159,4.25519401,232.24,232.16,4.25519401]
[1757956374362,0.7,232.23,232.17,13.59559401]
[1757956374561,4.95519401,232.23,232.17,39.59559401]
[1757956375575,4.25519401,232.25,232.18,0.14216157]
[1757956376860,4.25519401,232.25,232.2,13.73775558]
[1757956377179,4.95519401,232.25,232.2,13.73775558]
[1757956377556,4.45519401,232.27,232.2,13.73775558]
[1757956377751,4.45519401,232.27,232.2,0.14216157]
[1757956377752,0.2,232.27,232.2,0.14216157]
[1757956377973,4.25519401,232.25,232.2,26.14216157]
[1757956378155,0.7,232.24,232.2,26.14216157]
[1757956379675,4.25519401,232.25,232.2,26.14216157]
[1757956380055,0.7,232.24,232.2,26.14216157]
[1757956380978,4.25519401,232.25,232.2,26.14216157]
[1757956381278,0.7,232.24,232.2,26.14216157]
[1757956381664,4.25519401,232.21,232.1,0.06]
[1757956381865,4.25519401,232.19,232.1,4.31519401]
[1757956382167,38.685735,232.25,232.1,4.31519401]
[1757956382168,4.25519401,232.17,232.11,13.59559401]
[1757956382693,4.25519401,232.15,232.1,0.06]
[1757956383062,0.66,232.14,232.1,0.06]
[1757956383366,4.91519401,232.14,232.1,0.06]
[1757956383870,4.91519401,232.14,232.1,13.65559401]
[1757956384068,4.91519401,232.14,232.1,0.06]
[1757956384269,4.91519401,232.18,232.12,13.59559401]
[1757956384462,4.25519401,232.17,232.13,0.20216157]
[1757956384669,4.91519401,232.17,232.13,0.20216157]
[1757956384864,0.66,232.16,232.13,0.20216157]
[1757956385070,0.66,232.15,232.13,0.20216157]
[1757956385268,0.66,232.14,232.13,0.20216157]
[1757956385989,0.66,232.14,232.13,0.06]
[1757956387295,4.25519401,232.16,232.13,0.06]
[1757956387667,0.66,232.14,232.13,0.06]
[1757956388483,4.25519401,232.15,232.13,0.06]
[1757956388696,4.91519401,232.16,232.13,0.06]
[1757956388894,0.66,232.15,232.13,0.06]
[1757956390514,4.91519401,232.14,232.13,0.06]
[1757956390895,4.91519401,232.14,232.1,0.06]
[1757956390896,4.25519401,232.11,232.1,0.06]
[1757956391410,4.91519401,232.11,232.1,0.06]
[1757956391611,39.29519401,232.11,232.1,0.06]
[1757956392287,43.6034961,232.11,232.1,0.06]
[1757956393019,39.34830209,232.11,232.1,0.06]
[1757956393212,43.6034961,232.11,232.1,0.06]
[1757956395617,9.2234961,232.11,232.1,0.06]
[1757956395788,43.6034961,232.11,232.1,0.06]
[1757956395993,9.2234961,232.11,232.1,0.06]
[1757956396389,43.6034961,232.11,232.1,0.06]
[1757956398294,45.87606794,232.11,232.1,0.06]
[1757956398605,11.47606794,232.11,232.1,0.06]
[1757956398810,45.87606794,232.11,232.1,0.06]
[1757956399594,41.62087393,232.11,232.1,0.06]
[1757956400118,11.47606794,232.11,232.1,0.06]
[1757956400509,7.22087393,232.11,232.1,0.06]
[1757956400704,45.87606794,232.11,232.1,0.06]
[1757956400905,11.47606794,232.11,232.1,0.06]
[1757956401091,45.87606794,232.11,232.1,0.06]
[1757956404011,11.47606794,232.11,232.1,0.06]
[1757956404195,45.87606794,232.11,232.1,0.06]
[1757956405522,11.47606794,232.11,232.1,0.06]
[1757956405818,45.87606794,232.11,232.1,0.06]
[1757956406005,11.47606794,232.11,232.1,0.06]
[1757956406321,45.87606794,232.11,232.1,0.06]
[1757956406734,11.47606794,232.11,232.1,0.06]
[1757956406927,45.87606794,232.11,232.1,0.06]
[1757956407933,45.87606794,232.11,232.07,1e-08]
[1757956407934,26.0,232.08,232.07,1e-08]
[1757956408117,26.0,232.08,232.05,0.06]
[1757956408118,68.91038802,232.08,232.05,0.06]
[1757956408302,8.51038802,232.06,232.05,0.06]
[1757956408503,42.91038802,232.06,232.05,0.06]
[1757956408725,43.57038802,232.06,232.05,0.06]
[1757956408906,9.17038802,232.06,232.05,0.06]
[1757956409108,39.31519401,232.06,232.05,0.06]
[1757956410221,9.22442438,232.06,232.05,0.06]
[1757956410730,43.62442438,232.06,232.05,0.06]
[1757956415830,9.22442438,232.06,232.05,0.06]
[1757956416032,43.62442438,232.06,232.05,0.06]
[1757956416233,47.87961839,232.06,232.05,0.06]
[1757956416425,47.87961839,232.06,231.98,0.06]
[1757956416426,26.0,232.02,231.98,0.06]
[1757956416741,4.25519401,231.99,231.98,0.06]
[1757956416928,38.65519401,231.99,231.98,0.06]
[1757956417321,42.96572463,231.99,231.98,0.06]
[1757956417729,45.33063333,231.99,231.98,0.06]
[1757956419119,45.33063333,231.99,231.95,0.06]
[1757956419120,26.0,231.96,231.95,0.06]
[1757956419416,26.0,231.91,231.86,0.2]
[1757956419620,26.0,231.87,231.86,0.2]
[1757956419864,32.62010271,231.87,231.86,0.2]
[1757956420022,33.28010271,231.87,231.86,0.2]
[1757956420223,67.68010271,231.87,231.86,0.2]
[1757956420442,33.28010271,231.87,231.86,0.2]
[1757956420644,67.68010271,231.87,231.86,0.2]
[1757956421345,71.99286417,231.87,231.86,0.2]
[1757956421844,37.59286417,231.87,231.86,0.2]
[1757956422422,36.93286417,231.87,231.86,0.2]
[1757956422719,37.59286417,231.87,231.86,0.2]
[1757956423142,71.99286417,231.87,231.86,0.2]
[1757956423660,30.31276146,231.87,231.86,0.2]
[1757956423870,6.62010271,231.87,231.86,0.2]
[1757956424160,6.62010271,231.87,231.86,0.78]
[1757956425058,41.02010271,231.87,231.86,0.78]
[1757956425766,6.62010271,231.87,231.86,0.78]
[1757956426047,41.02010271,231.87,231.86,0.78]
[1757956426634,41.02010271,231.87,231.86,0.2]
[1757956427045,4.31262946,231.88,231.86,0.2]
[1757956427364,34.4,231.87,231.86,0.78]
[1757956427644,34.4,231.87,231.86,0.2]
[1757956428055,41.02010271,231.87,231.86,0.78]
[1757956428358,6.62010271,231.87,231.86,0.2]
[1757956428535,34.4,231.87,231.86,0.2]
[1757956428739,41.02010271,231.87,231.86,0.2]
[1757956428950,41.68010271,231.87,231.86,0.2]
[1757956429170,34.4,231.87,231.86,0.2]
[1757956429343,41.68010271,231.87,231.86,0.2]
[1757956431560,41.02010271,231.87,231.86,0.2]
[1757956432251,41.68010271,231.87,231.86,0.2]
[1757956432661,7.28010271,231.87,231.86,0.2]
[1757956432861,41.68010271,231.87,231.86,0.2]
[1757956433034,41.02010271,231.87,231.86,0.2]
[1757956433452,41.73010271,231.87,231.86,0.2]
[1757956433641,46.04286417,231.87,231.86,0.2]
[1757956434162,11.64286417,231.87,231.86,0.2]
[1757956434351,46.04286417,231.87,231.86,0.2]
[1757956437954,11.64286417,231.87,231.86,0.2]
[1757956438150,46.04286417,231.87,231.86,0.2]
[1757956439540,46.04286417,231.87,231.83,0.06]
[1757956439541,56.82476782,231.87,231.83,0.06]
[1757956439763,32.62010271,231.84,231.83,0.06]
[1757956439966,71.33342224,231.84,231.83,0.06]
[1757956440143,37.64342224,231.84,231.83,0.06]
[1757956440470,72.04342224,231.84,231.83,0.06]
[1757956441261,37.64342224,231.84,231.83,0.06]
[1757956441660,37.64342224,231.84,231.82,0.06]
[1757956441661,44.26352495,231.84,231.82,0.06]
[1757956441865,10.93360829,231.83,231.82,0.06]
[1757956442172,46.04360829,231.83,231.82,0.06]
[1757956442374,36.93360829,231.83,231.82,0.06]
[1757956442557,71.33360829,231.83,231.82,0.06]
[1757956443277,11.49071869,231.9,231.82,0.64]
[1757956443462,6.62010271,231.86,231.82,0.06]
[1757956443650,34.4,231.85,231.83,0.58]
[1757956443850,6.62010271,231.85,231.83,0.58]
[1757956444264,4.31271798,231.88,231.84,0.58]
[1757956444265,6.62010271,231.86,231.84,0.58]
[1757956444472,34.4,231.85,231.84,0.58]
[1757956445242,34.4,231.85,231.82,0.06]
[1757956445243,41.02010271,231.85,231.82,0.06]
[1757956445455,6.62010271,231.84,231.82,0.64]
[1757956445652,34.4,231.83,231.82,0.64]
[1757956446064,34.4,231.83,231.82,0.06]
[1757956446774,41.02010271,231.83,231.82,0.06]
[1757956448284,46.04360829,231.83,231.82,0.06]
[1757956448585,46.04360829,231.83,231.81,0.06]
[1757956448586,26.0,231.82,231.81,0.06]
[1757956448792,32.62010271,231.82,231.81,0.06]
[1757956448966,33.33010271,231.82,231.81,0.06]
[1757956449147,67.73010271,231.82,231.81,0.06]
[1757956449346,67.73010271,231.82,231.8,0.06]
[1757956449569,67.73010271,231.82,231.78,0.06]
[1757956449570,26.0,231.79,231.78,0.06]
[1757956449774,67.02010271,231.79,231.78,0.06]
[1757956449951,67.73010271,231.79,231.78,0.06]
[1757956450147,65.42424996,231.79,231.78,0.06]
[1757956450354,36.93435267,231.79,231.78,0.06]
[1757956450569,72.04435267,231.79,231.78,0.06]
[1757956451553,71.33435267,231.79,231.78,0.06]
[1757956452170,72.04435267,231.79,231.78,0.06]
[1757956452478,46.04435267,231.79,231.78,0.06]
[1757956452661,46.04435267,231.79,231.68,0.58]
[1757956452969,46.04435267,231.79,231.62,6.82010271]
[1757956452970,6.62010271,231.78,231.77,1e-08]
[1757956453276,42.75024394,231.78,231.77,1e-08]
[1757956453457,43.46024394,231.78,231.77,1e-08]
[1757956453775,41.73010271,231.78,231.77,1e-08]
[1757956453973,43.4601691,231.78,231.77,1e-08]
[1757956454775,47.7746052,231.78,231.77,1e-08]
[1757956455370,26.0,231.76,231.75,1e-08]
[1757956455554,26.0,231.76,231.74,1e-08]
[1757956455555,67.02010271,231.76,231.74,1e-08]
[1757956455871,7.33010271,231.75,231.74,1e-08]
[1757956456077,32.62010271,231.75,231.74,1e-08]
[1757956456758,36.93509731,231.75,231.74,1e-08]
[1757956458191,37.64509731,231.75,231.74,1e-08]
[1757956458857,31.0249946,231.75,231.74,1e-08]
[1757956459077,71.33509731,231.75,231.74,1e-08]
[1757956459468,72.04509731,231.75,231.74,1e-08]
[1757956460273,71.33509731,231.75,231.74,1e-08]
[1757956460481,36.93509731,231.75,231.74,1e-08]
[1757956460855,71.33509731,231.75,231.74,1e-08]
[1757956461062,36.93509731,231.75,231.74,1e-08]
[1757956461265,71.33509731,231.75,231.74,1e-08]
[1757956461981,67.49377065,231.75,231.74,1e-08]
[1757956462982,68.20377065,231.75,231.74,1e-08]
[1757956463175,33.09377065,231.75,231.74,1e-08]
[1757956463485,69.74984934,231.75,231.74,1e-08]
[1757956464484,35.34984934,231.75,231.74,1e-08]
[1757956464670,69.74984934,231.75,231.74,1e-08]
[1757956465874,35.34984934,231.75,231.74,1e-08]
[1757956466186,69.74984934,231.75,231.74,1e-08]
[1757956466886,35.34984934,231.75,231.74,1e-08]
[1757956467262,69.74984934,231.75,231.74,1e-08]
[1757956468492,35.34984934,231.75,231.74,1e-08]
[1757956470889,69.74984934,231.75,231.74,1e-08]
[1757956471888,35.34984934,231.75,231.74,1e-08]
[1757956472093,69.74984934,231.75,231.74,1e-08]
[1757956472878,35.34984934,231.75,231.74,1e-08]
[1757956473212,69.74984934,231.75,231.74,1e-08]
[1757956474177,35.34984934,231.75,231.74,1e-08]
[1757956474377,69.74984934,231.75,231.74,1e-08]
[1757956474872,70.43984934,231.75,231.74,1e-08]
[1757956475075,69.74984934,231.75,231.74,1e-08]
[1757956476400,32.57107329,231.75,231.74,0.72000001]
[1757956476705,35.34984934,231.75,231.74,0.72000001]
[1757956476900,69.74984934,231.75,231.74,1e-08]
[1757956477297,70.43984934,231.75,231.74,1e-08]
[1757956478292,73.62474661,231.75,231.74,1e-08]
[1757956478684,90.42962066,231.75,231.69,0.06]
[1757956478890,26.0,231.69,231.62,0.2]
[1757956479101,13.59559401,231.72,231.62,0.2]
[1757956479102,28.77877605,231.63,231.62,0.2]
[1757956479405,63.15877605,231.63,231.62,0.2]
[1757956479580,61.07,231.63,231.62,0.2]
[1757956479922,62.85031109,231.63,231.62,0.2]
[1757956480110,67.16754115,231.63,231.62,0.2]
[1757956480307,32.78754115,231.63,231.62,0.2]
[1757956480487,67.16754115,231.63,231.62,0.2]
[1757956480892,32.78754115,231.63,231.62,0.2]
[1757956481094,67.16754115,231.63,231.62,0.2]
[1757956481298,32.78754115,231.63,231.62,0.2]
[1757956481610,77.96061631,231.63,231.58,0.2]
[1757956481989,27.78031109,231.59,231.5,0.72]
[1757956482319,27.78031109,231.59,231.33,21.61359304]
[1757956482320,27.78031109,231.51,231.44,0.72]
[1757956482484,1.78031109,231.45,231.41,0.72]
[1757956482807,60.38,231.5,231.38,0.72]
[1757956482808,1.78031109,231.42,231.38,0.72]
[1757956483012,26.0,231.46,231.35,0.72]
[1757956483013,1.78031109,231.39,231.35,0.72]
[1757956483305,1.78031109,231.36,231.33,0.72]
[1757956483507,1.78031109,231.34,231.33,0.72]
[1757956484412,36.18031109,231.34,231.3,0.72]
[1757956484609,0.69,231.37,231.3,0.72]
[1757956484913,1.78031109,231.31,231.3,0.72]
[1757956485290,36.18031109,231.31,231.25,13.59559401]
[1757956485490,34.4,231.3,231.26,0.72]
[1757956486015,26.0,231.42,231.29,1.78031109]
[1757956486198,1.78031109,231.36,231.3,2.50031109]
[1757956486394,1.78031109,231.37,231.31,2.50031109]
[1757956486607,1.78031109,231.37,231.27,39.73775558]
[1757956486608,1.78031109,231.42,231.36,1.78031109]
[1757956486817,1.78031109,231.42,231.37,0.72]
[1757956487020,12.99235616,231.49,231.41,1.78031109]
[1757956487201,12.99235616,231.49,231.38,13.59559401]
[1757956487202,14.77266725,231.49,231.43,1.78031109]
[1757956487717,32.08031109,231.48,231.42,0.72]
[1757956488019,1.78031109,231.48,231.42,0.72]
[1757956488194,4.31992476,231.49,231.42,0.72]
[1757956488399,36.18031109,231.48,231.42,0.72]
[1757956488621,1.78031109,231.48,231.42,0.72]
[1757956488914,34.4,231.47,231.42,0.72]
[1757956489119,34.4,231.47,231.43,0.72]
[1757956489804,34.4,231.46,231.43,0.72]
[1757956489997,4.28332554,231.47,231.43,0.72]
[1757956490197,4.28332554,231.47,231.41,4.28332554]
[1757956490198,4.28332554,231.49,231.42,8.60445165]
[1757956490416,21.24579786,231.69,231.42,8.60445165]
[1757956490417,34.4,231.48,231.45,4.28332554]
[1757956490609,34.4,231.48,231.46,5.00332554]
[1757956490820,4.28332554,231.52,231.47,0.72]
[1757956491117,34.4,231.51,231.48,0.72]
[1757956491317,34.4,231.5,231.48,0.72]
[1757956491720,34.4,231.5,231.46,0.72]
[1757956491905,34.4,231.5,231.47,0.72]
[1757956492109,8.60265892,231.52,231.47,0.72]
[1757956492308,4.28332554,231.49,231.41,26.0]
[1757956492617,4.28332554,231.51,231.45,4.28332554]
[1757956492795,4.28332554,231.51,231.46,0.72]
[1757956492998,26.0,231.52,231.47,0.72]
[1757956493215,30.28332554,231.52,231.46,4.28332554]
[1757956493523,30.28332554,231.52,231.46,0.7]
[1757956493524,38.68332554,231.51,231.46,0.7]
[1757956493728,8.6028201,231.51,231.44,4.28332554]
[1757956493924,4.28332554,231.48,231.43,0.7]
[1757956494217,4.28332554,231.5,231.43,9.3042366]
[1757956494430,34.4,231.49,231.44,0.7]
[1757956494636,34.4,231.49,231.43,8.6042366]
[1757956494833,34.4,231.49,231.45,4.28332554]
[1757956495120,4.28332554,231.52,231.46,0.7]
[1757956495320,26.67,231.53,231.46,0.7]
[1757956495521,4.28332554,231.51,231.46,0.7]
[1757956495911,34.4,231.5,231.46,0.7]
[1757956496108,4.28332554,231.51,231.46,0.7]
[1757956496309,30.28332554,231.53,231.47,4.98332554]
[1757956496509,6.54138441,231.55,231.48,4.98332554]
[1757956496823,34.4,231.54,231.49,4.98332554]
[1757956497000,4.28332554,231.55,231.5,0.7]
[1757956497197,34.4,231.54,231.5,0.7]
[1757956497414,4.28332554,231.55,231.5,0.7]
[1757956497823,34.4,231.54,231.5,0.7]
[1757956498129,39.35332554,231.54,231.48,0.14216157]